fUST/lending_fUST_20250429
["ID","MTS","AMOUNT","RATE_DAILY","PERIOD"]
[359292653,1745895063943,-1402.76202272,0.00021095,2]
[359292654,1745895064249,-400.0,0.00019178,2]
[359292655,1745895064259,-328.96797728,0.00021095,2]
[359292656,1745895064268,-27.83202272,0.00021095,2]
[359292657,1745895064287,-660.75797728,0.00021095,2]
[359292658,1745895064297,-400.0,0.00021095,2]
[359292659,1745895064306,-896.35,0.00021095,2]
[359292660,1745895064315,-1244.71,0.00021095,2]
[359292661,1745895064325,-400.0,0.00021095,2]
[359292662,1745895064334,-1243.65,0.00021095,2]
[359292663,1745895064345,-400.0,0.00021095,2]
[359292664,1745895064355,-400.0,0.00021095,2]
[359292665,1745895064364,-400.0,0.00021095,2]
[359292666,1745895064374,-2584.83,0.00021095,2]
[359292667,1745895064383,-678.98,0.00021095,2]
[359292668,1745895064392,-400.0,0.00021095,2]
[359292669,1745895064402,-439.82,0.00021095,2]
[359292670,1745895064411,-955.03,0.00021095,2]
[359292671,1745895064420,-766.32,0.00021095,2]
[359292672,1745895064429,-6668.64,0.00021095,2]
[359292673,1745895064439,-442.16,0.00021095,2]
[359292674,1745895064453,-551.05,0.00021095,2]
[359292675,1745895064463,-400.0,0.00021095,2]
[359292676,1745895064473,-537.08,0.00021095,2]
[359292677,1745895064483,-3355.31,0.00021095,2]
[359292678,1745895064492,-2006.54,0.00021095,2]
[359292679,1745895064501,-2473.34536781,0.00021095,2]
[359292680,1745895064562,-252.79502981,0.00021095,2]
[359292681,1745895064574,-513.00960238,0.00021095,2]
[359292682,1745895064584,-987.36,0.00021095,2]
[359292683,1745895064594,-698.16,0.00021095,2]
[359292684,1745895064603,-400.0,0.00021095,2]
[359292685,1745895064613,-400.0,0.00021095,2]
[359292686,1745895064623,-1169.74,0.00021095,2]
[359292687,1745895064633,-553.03,0.00021095,2]
[359292688,1745895064642,-354.28610245,0.00021095,2]
[359292689,1745895065636,-508.76587208,0.00026,30]
[359292690,1745895065663,-529.70611013,0.00026,30]
[359292691,1745895065688,-540.8523818,0.00026,30]
[359292692,1745895065713,-514.95995328,0.00027397,120]
[359292693,1745895065737,-959.763031,0.00027397,120]
[359292778,1745895080402,400.79742192,0.00027397,60]
[359294249,1745896009383,719.822273,0.00027397,120]
[359294527,1745896232516,-166.8008794,0.00018212,2]
[359294528,1745896232526,-245.3720228,0.00018585,2]
[359294529,1745896232536,-177.335559,0.00018737,2]
[359294530,1745896232546,-300.0,0.00019035,2]
[359294531,1745896232557,-14505.2238065,0.00019036,2]
[359294532,1745896232567,-3036.1989581,0.00019181,2]
[359294533,1745896232577,-172.136759,0.00019425,2]
[359294534,1745896232588,-153.0,0.00019863,2]
[359294535,1745896232599,-153.0,0.00019863,2]
[359294536,1745896232609,-153.0,0.000199,2]
[359294537,1745896232619,-179.89467565,0.00019904,2]
[359294538,1745896232631,-160.0,0.0002,3]
[359294539,1745896232643,-203.657,0.00020295,2]
[359294540,1745896232654,-246.67,0.00020295,2]
[359294541,1745896232665,-250.0,0.00020295,2]
[359294542,1745896232674,-361.61774332,0.00020301,2]
[359294543,1745896232686,-205.46617698,0.00020301,2]
[359294544,1745896232696,-157.3664837,0.00020301,2]
[359294545,1745896232705,-174.9933725,0.00020301,2]
[359294546,1745896232715,-160.0,0.00020326,2]
[359294547,1745896232725,-160.0,0.00020326,2]
[359294548,1745896232734,-421.28334683,0.00020326,2]
[359294549,1745896232743,-160.0,0.00020326,2]
[359294550,1745896232753,-160.0,0.00020326,2]
[359294551,1745896232763,-160.0,0.00020326,2]
[359294552,1745896232772,-256.503,0.00020452,2]
[359294553,1745896232782,-545.0,0.00020452,2]
[359294554,1745896232791,-2245.0,0.00020452,2]
[359294555,1745896232800,-707.0,0.00020452,2]
[359294556,1745896232810,-406.169,0.00020452,2]
[359294557,1745896232820,-153.0,0.00020685,2]
[359294558,1745896232830,-153.0,0.00020685,2]
[359294559,1745896232839,-166.8588689,0.00020685,2]
[359294560,1745896232849,-154.6468451,0.00020685,2]
[359294561,1745896232859,-153.0,0.00020685,2]
[359294562,1745896232869,-153.0,0.00020685,2]
[359294563,1745896232879,-153.0,0.00020685,2]
[359294564,1745896232889,-153.0,0.00020685,2]
[359294565,1745896232899,-420.0,0.00020747,2]
[359294566,1745896232909,-506.76132985,0.0002075,2]
[359294567,1745896232919,-734.5643638,0.00020884,2]
[359294568,1745896232929,-500.0,0.0002089,2]
[359294569,1745896232939,-157.57,0.00021,2]
[359294570,1745896232950,-441.62024983,0.00021062,2]
[359294571,1745896232960,-448.80131538,0.00021062,2]
[359294572,1745896232969,-500.0,0.00021062,2]
[359294573,1745896232979,-500.0,0.00021075,2]
[359294574,1745896232989,-500.0,0.00021075,2]
[359294575,1745896232999,-500.0,0.00021075,2]
[359294576,1745896233009,-151.0,0.00021075,2]
[359294577,1745896233019,-151.0,0.00021075,2]
[359294578,1745896233028,-151.52404295,0.00021075,2]
[359294579,1745896233038,-153.61458658,0.00021075,2]
[359294580,1745896233049,-152.10317674,0.00021075,2]
[359294581,1745896233059,-151.29536955,0.00021075,2]
[359294582,1745896233069,-151.90986369,0.00021075,2]
[359294583,1745896233079,-151.0,0.00021075,2]
[359294584,1745896233088,-367.8918799,0.00021112,2]
[359294585,1745896233098,-361.7792701,0.00021112,2]
[359294586,1745896233108,-361.7792701,0.00021112,2]
[359294587,1745896233118,-361.7792701,0.00021112,2]
[359294588,1745896233131,-361.7792701,0.00021112,2]
[359294589,1745896233140,-393.1556792,0.00021112,2]
[359294590,1745896233151,-151.0,0.0002113,2]
[359294591,1745896233162,-500.0,0.0002113,2]
[359294592,1745896233173,-530.2766372,0.0002113,2]
[359294593,1745896233183,-151.0,0.0002113,2]
[359294594,1745896233193,-151.0,0.0002113,2]
[359294595,1745896233204,-223.38865448,0.0002113,2]
[359294596,1745896233214,-151.0,0.00021185,2]
[359294597,1745896233224,-414.23106522,0.00021185,2]
[359294598,1745896233234,-151.0,0.00021185,2]
[359294599,1745896233243,-151.0,0.00021185,2]
[359294600,1745896233252,-840.73483787,0.000212,3]
[359294601,1745896233263,-160.0,0.000212,3]
[359294602,1745896233273,-160.0,0.000212,3]
[359294603,1745896233282,-160.0,0.000212,3]
[359294604,1745896233292,-12589.54207618,0.000212,3]
[359294605,1745896233302,-14277.27414576,0.000212,3]
[359294606,1745896233312,-14277.27414548,0.000212,3]
[359294607,1745896233321,-153.0,0.00021233,2]
[359294608,1745896233331,-153.0,0.00021233,2]
[359294609,1745896233340,-153.0,0.00021233,2]
[359294610,1745896233350,-151.0,0.00021239,2]
[359294611,1745896233359,-155.07304646,0.00021239,2]
[359294612,1745896233369,-151.0,0.00021239,2]
[359294613,1745896233378,-505.80311082,0.00021245,2]
[359294614,1745896233388,-501.47968579,0.00021245,2]
[359294615,1745896233397,-500.0,0.00021245,2]
[359294616,1745896233406,-500.0,0.00021245,2]
[359294617,1745896233416,-501.29797609,0.00021245,2]
[359294618,1745896233426,-500.0,0.00021245,2]
[359294619,1745896233435,-512.72733146,0.00021245,2]
[359294620,1745896233445,-502.12035174,0.00021245,2]
[359294621,1745896233454,-500.0,0.00021245,2]
[359294622,1745896233464,-140.25205276,0.00021279,3]
[359294653,1745896238356,-14137.02209272,0.00021279,3]
[359294655,1745896238367,-244.91704208,0.00021294,2]
[359294658,1745896238376,-243.67707198,0.00021294,2]
[359294660,1745896238387,-502.37532784,0.00021349,2]
[359294662,1745896238396,-500.0,0.00021357,2]
[359294664,1745896238406,-501.17175627,0.00021357,2]
[359294666,1745896238416,-187.33408745,0.00021357,2]
[359294668,1745896238425,-300.0,0.00021357,2]
[359294670,1745896238435,-500.0,0.00021357,2]
[359294701,1745896238656,-400.0,0.00021369,2]
[359294704,1745896238666,-681.93,0.00021369,2]
[359294706,1745896238676,-503.06968605,0.00021421,2]
[359294708,1745896238685,-500.0,0.00021421,2]
[359294710,1745896238696,-500.0,0.00021531,2]
[359294712,1745896238706,-400.0,0.00021643,2]
[359294714,1745896238716,-681.93,0.00021643,2]
[359294716,1745896238726,-500.0,0.00021796,2]
[359294718,1745896238736,-3000.0,0.000219,2]
[359294720,1745896238746,-196.45296678,0.0002191,2]
[359294722,1745896238758,-2803.54703322,0.0002191,2]
[359294724,1745896238769,-400.0,0.00021917,2]
[359294726,1745896238778,-681.93,0.00021917,2]
[359294728,1745896238788,-161.08439203,0.00021917,2]
[359294730,1745896238798,-3000.0,0.0002192,2]
[359294732,1745896238808,-2225.0196247,0.0002193,2]
[359294735,1745896238823,-424.44298731,0.0002193,2]
[359294737,1745896238835,-350.53738799,0.0002193,2]
[359294739,1745896238844,-309.31434042,0.0002194,2]
[359294742,1745896238855,-2690.68565958,0.0002194,2]
[359294744,1745896238865,-3000.0,0.0002195,2]
[359294746,1745896238875,-3000.0,0.0002196,2]
[359294748,1745896238885,-6631.98722192,0.00021969,3]
[359294781,1745896240705,-7645.28692356,0.00021969,3]
[359294782,1745896240715,-500.0,0.00021969,2]
[359294783,1745896240724,-500.0,0.00021969,2]
[359294784,1745896240733,-196.54482289,0.00021969,2]
[359294785,1745896240743,-500.0,0.00021969,2]
[359294786,1745896240752,-500.0,0.00021969,2]
[359294787,1745896240762,-500.0,0.00021969,2]
[359294788,1745896240776,-500.0,0.00021969,2]
[359294789,1745896240786,-500.0,0.00021969,2]
[359294790,1745896240796,-500.0,0.00021969,2]
[359294791,1745896240806,-500.0,0.00021969,2]
[359294792,1745896240816,-500.0,0.00021969,2]
[359294793,1745896240825,-500.0,0.00021969,2]
[359294794,1745896240835,-500.0,0.00021969,2]
[359294795,1745896240844,-412.70869631,0.00021969,2]
[359294796,1745896240853,-500.0,0.00021969,2]
[359294797,1745896240863,-5892.811272,0.0002197,2]
[359294798,1745896240872,-500.0,0.00021973,2]
[359294799,1745896240881,-504.86985787,0.00021973,2]
[359294800,1745896240890,-500.0,0.00021973,2]
[359294801,1745896240901,-492.08660646,0.00022,9]
[359294802,1745896240911,-37657.28501542,0.00022,7]
[359294803,1745896240921,-166.811256,0.00022,9]
[359294804,1745896240932,-2243.0,0.00022,2]
[359294805,1745896240943,-840.73483787,0.00022,7]
[359294806,1745896240953,-160.0,0.00022,7]
[359294807,1745896240963,-160.0,0.00022,7]
[359294808,1745896240973,-160.0,0.00022,7]
[359294809,1745896240983,-12589.54207618,0.00022,7]
[359294810,1745896240993,-500.0,0.00022026,2]
[359294811,1745896241003,-400.0,0.00022191,2]
[359294812,1745896241012,-681.93,0.00022191,2]
[359294813,1745896241025,-160.0,0.0002221,3]
[359294814,1745896241035,-307.9754932,0.00022339,2]
[359294815,1745896241045,-400.0,0.00022465,2]
[359294816,1745896241055,-681.93,0.00022465,2]
[359294817,1745896241065,-587.0,0.00022613,2]
[359294818,1745896241075,-14277.27414548,0.00022659,4]
[359294819,1745896241085,-311.51559697,0.0002272,2]
[359294820,1745896241095,-500.0,0.0002272,2]
[359294821,1745896241106,-400.0,0.00022739,2]
[359294822,1745896241116,-681.93,0.00022739,2]
[359294823,1745896241126,-1000.0,0.000228,4]
[359294824,1745896241135,-1825.34671484,0.000229,2]
[359294825,1745896241147,-160.0,0.00023,3]
[359294826,1745896241160,-160.0,0.00023,3]
[359294827,1745896241170,-160.0,0.00023,3]
[359294828,1745896241374,-421.28334683,0.00023,3]
[359294829,1745896241384,-186.0,0.00023,7]
[359294830,1745896241394,-160.0,0.00023,3]
[359294831,1745896241404,-600.0,0.00023001,2]
[359294832,1745896241414,-400.0,0.00023013,2]
[359294833,1745896241423,-681.93,0.00023013,2]
[359294834,1745896241432,-400.0,0.00023287,2]
[359294835,1745896241442,-681.93,0.00023287,2]
[359294836,1745896241451,-150.0,0.00023295,2]
[359294837,1745896241461,-14277.27414548,0.00023348,4]
[359294838,1745896241471,-545.0,0.00023452,2]
[359294839,1745896241480,-2245.0,0.00023452,2]
[359294841,1745896241490,-707.0,0.00023452,2]
[359294842,1745896241499,-305.44713538,0.00023561,2]
[359294843,1745896241509,-681.93,0.00023561,2]
[359294844,1745896241520,-1000.0,0.000237,2]
[359294845,1745896241530,-1430.950911,0.0002382,5]
[359294846,1745896241539,-681.93,0.00023835,2]
[359294847,1745896241548,-1000.0,0.0002384,5]
[359294848,1745896241558,-1000.0,0.0002386,5]
[359294849,1745896241567,-1000.0,0.0002388,5]
[359294850,1745896241576,-1593.167835,0.0002388,5]
[359294851,1745896241585,-1000.0,0.000239,5]
[359294852,1745896241595,-1000.0,0.000239,5]
[359294853,1745896241604,-1000.0,0.0002392,5]
[359294854,1745896241613,-1000.0,0.0002392,5]
[359294855,1745896241623,-1000.0,0.0002394,5]
[359294856,1745896241632,-1000.0,0.0002394,5]
[359294857,1745896241642,-1000.0,0.0002396,5]
[359294858,1745896241652,-1000.0,0.0002396,5]
[359294859,1745896241661,-1000.0,0.0002398,5]
[359294860,1745896241671,-1000.0,0.0002398,5]
[359294861,1745896241680,-173.60378151,0.00024,2]
[359294862,1745896241690,-1000.0,0.00024,5]
[359294863,1745896241700,-1000.0,0.00024,5]
[359294864,1745896241709,-160.0,0.00024,7]
[359294865,1745896241719,-160.0,0.00024,7]
[359294866,1745896241730,-421.28334683,0.00024,7]
[359294867,1745896241740,-160.0,0.00024,7]
[359294868,1745896241750,-1000.0,0.0002402,5]
[359294869,1745896241760,-1000.0,0.0002402,5]
[359294870,1745896241770,-14277.27414548,0.00024038,5]
[359294871,1745896241779,-1000.0,0.0002404,5]
[359294872,1745896241788,-1000.0,0.0002404,5]
[359294873,1745896241798,-1000.0,0.0002406,5]
[359294874,1745896241808,-1000.0,0.0002406,5]
[359294875,1745896241817,-1825.34671483,0.00024063,2]
[359294876,1745896241826,-250.97750782,0.00024064,2]
[359294877,1745896241836,-1000.0,0.0002408,5]
[359294878,1745896241845,-1000.0,0.0002408,5]
[359294879,1745896241854,-1000.0,0.000241,5]
[359294880,1745896241863,-1000.0,0.000241,5]
[359294881,1745896241872,-681.93,0.00024109,2]
[359294882,1745896241882,-186.0,0.00024164,7]
[359294883,1745896241892,-681.93,0.00024383,2]
[359294884,1745896241902,-900.0,0.00024645,2]
[359294885,1745896241914,-823.0,0.00024648,2]
[359294886,1745896241923,-681.93,0.00024657,2]
[359294887,1745896241932,-14277.27414548,0.00024728,5]
[359294888,1745896241941,-2294.69358087,0.00024751,2]
[359294889,1745896241951,-691.2223824,0.000248,2]
[359294890,1745896241960,-595.50402253,0.000248,3]
[359294891,1745896241969,-314.7329674,0.00024807,2]
[359294892,1745896241978,-3513.27700075,0.00024851,2]
[359294893,1745896241988,-3513.27700075,0.00024861,2]
[359294894,1745896241997,-500.0,0.00024873,2]
[359294895,1745896242007,-501.58164405,0.00024873,2]
[359294896,1745896242016,-501.56993582,0.00024873,2]
[359294897,1745896242024,-500.0,0.00024873,2]
[359294898,1745896242032,-500.0,0.00024873,2]
[359294899,1745896242041,-501.46350457,0.00024873,2]
[359294900,1745896242049,-500.0,0.00024873,2]
[359294902,1745896242059,-3513.27700075,0.00024876,2]
[359294903,1745896242067,-3513.27700075,0.00024877,2]
[359294904,1745896242075,-548.29138777,0.00024879,2]
[359294905,1745896242085,-158.61303191,0.00024879,2]
[359294906,1745896242094,-500.0,0.00024879,2]
[359294907,1745896242104,-166.79917879,0.00024879,2]
[359294908,1745896242113,-506.38932186,0.00024879,2]
[359294909,1745896242122,-500.0,0.00024879,2]
[359294910,1745896242131,-508.9395124,0.00024899,2]
[359294911,1745896242140,-117908.64276405,0.000249,2]
[359294935,1745896246552,-403.0,0.00020401,2]
[359294936,1745896246564,-403.0,0.00023401,2]
[359294937,1745896246574,-48708.88909398,0.000249,2]
[359294938,1745896246607,-39247.84592397,0.000249,2]
[359294939,1745896246617,-681.93,0.00024931,2]
[359294940,1745896246627,-41173.0755565,0.00024963,2]
[359294941,1745896246637,-501.46551958,0.00024973,2]
[359294942,1745896246647,-500.0,0.00024973,2]
[359294943,1745896246657,-502.31038078,0.00024973,2]
[359294944,1745896246667,-507.45295521,0.00024973,2]
[359294945,1745896246677,-571.68091678,0.00024973,2]
[359294946,1745896246687,-500.0,0.00024973,2]
[359294947,1745896246697,-500.0,0.00024973,2]
[359294948,1745896246707,-500.0,0.00024973,2]
[359294949,1745896246716,-500.0,0.00024973,2]
[359294950,1745896246726,-500.0,0.00024973,2]
[359294951,1745896246736,-500.81377684,0.00024973,2]
[359294952,1745896246746,-500.84017383,0.00024973,2]
[359294953,1745896246756,-501.15121201,0.00024973,2]
[359294954,1745896246766,-500.0,0.00024973,2]
[359294955,1745896246776,-500.0,0.00024973,2]
[359294956,1745896246787,-500.0,0.00024973,2]
[359294957,1745896246797,-206.83708799,0.00024973,2]
[359294958,1745896246807,-507.3720699,0.00024973,2]
[359294959,1745896246817,-500.0,0.00024973,2]
[359294960,1745896246828,-1098.861306,0.0002498,5]
[359294961,1745896246838,-41173.0755565,0.0002499,2]
[359294962,1745896246847,-552.97790592,0.0002499,2]
[359294963,1745896246856,-35034.21287541,0.00025,2]
[359294964,1745896246866,-110201.910168,0.00025,2]
[359294965,1745896246876,-7985.44023752,0.00025,2]
[359294966,1745896246890,-7014.55976248,0.00025,2]
[359294967,1745896246900,-160.0,0.00025,7]
[359294968,1745896246909,-3416.66311395,0.00025,7]
[359294969,1745896246920,-3822.10913016,0.00025,7]
[359294970,1745896246937,-3852.50871295,0.00025,7]
[359295545,1745896803174,250.0,0.00010101,2]
[359295547,1745896803201,634.31,0.00010101,2]
[359295637,1745896884149,-250.0,0.00018012,2]
[359296026,1745897306659,-307.98767251,0.00018112,2]
[359296037,1745897318762,5410.3058756,0.000175,4]
[359296042,1745897321298,12000.00000017,0.00026,30]
[359296113,1745897387035,539.866704,0.00027397,120]
[359296170,1745897432575,-196.50281778,0.0001991,5]
[359296171,1745897432589,-512.04,0.0002,2]
[359296172,1745897432599,-500.0,0.0002,2]
[359296173,1745897432609,-500.0,0.0002,3]
[359296174,1745897432619,-500.0,0.0002,3]
[359296175,1745897432629,-150.92341585,0.0002,7]
[359296176,1745897432639,-172.136759,0.00020374,2]
[359296177,1745897432648,-507.7700966,0.00020622,2]
[359296178,1745897432659,-1848.91632544,0.00020705,2]
[359296179,1745897432669,-2245.0,0.00020705,2]
[359296180,1745897432679,-707.0,0.00020705,2]
[359296181,1745897432688,-403.0,0.00020705,2]
[359296183,1745897432698,-177.335559,0.00020928,2]
[359296185,1745897432707,-170.16,0.00021,2]
[359296187,1745897432717,-170.16,0.00021,2]
[359296189,1745897432727,-170.16,0.00021,2]
[359296191,1745897432736,-170.16,0.00021,2]
[359296192,1745897432746,-170.16,0.00021,2]
[359296193,1745897432756,-170.18365303,0.00021,2]
[359296194,1745897432765,-157.52,0.00021,2]
[359296195,1745897432775,-1472.63839126,0.000218,2]
[359296196,1745897432784,-160.0,0.00021849,2]
[359296197,1745897432794,-421.28334683,0.00021849,2]
[359296198,1745897432803,-160.0,0.00021849,2]
[359296199,1745897432812,-160.0,0.0002185,2]
[359296200,1745897432822,-160.0,0.0002185,2]
[359296201,1745897432831,-840.73483787,0.000219,3]
[359296202,1745897432841,-160.0,0.000219,3]
[359296203,1745897432851,-160.0,0.000219,3]
[359296204,1745897432861,-3770.1385728,0.000219,3]
[359296205,1745897432880,-6787.95369597,0.000219,3]
[359296206,1745897432889,-12589.54207618,0.000219,3]
[359296207,1745897432899,-500.0,0.00022,2]
[359296208,1745897432909,-4135.6033948,0.0002242,2]
[359296209,1745897432918,-5048.25850641,0.00022521,4]
[359296226,1745897438807,-5509.83376209,0.00022521,4]
[359296227,1745897438817,-160.0,0.00023,3]
[359296228,1745897438826,-160.0,0.00023,3]
[359296229,1745897438835,-160.0,0.00023,3]
[359296230,1745897438844,-421.28334683,0.00023,3]
[359296231,1745897438853,-5782.35158239,0.00023141,4]
[359296232,1745897438863,-767.5339905,0.00023141,4]
[359296242,1745897440890,-4008.20669561,0.00023141,4]
[359296243,1745897440900,-500.0,0.00023461,2]
[359296244,1745897440911,-500.0,0.00023461,2]
[359296245,1745897440921,-500.0,0.00023461,2]
[359296246,1745897440932,-2245.0,0.00023705,2]
[359296247,1745897440942,-707.0,0.00023705,2]
[359296248,1745897440953,-403.0,0.00023705,2]
[359296249,1745897440964,-500.0,0.00023744,2]
[359296250,1745897440973,-500.0,0.00023744,2]
[359296251,1745897440982,-500.55348308,0.00023744,2]
[359296252,1745897440991,-500.0,0.00023744,2]
[359296253,1745897441000,-500.0,0.00023744,2]
[359296254,1745897441010,-500.0,0.00023744,2]
[359296255,1745897441019,-10558.0922685,0.00023762,4]
[359296256,1745897441028,-500.0,0.00023948,2]
[359296257,1745897441038,-500.0,0.00023948,2]
[359296258,1745897441047,-500.0,0.00023948,2]
[359296259,1745897441056,-500.0,0.00023948,2]
[359296260,1745897441065,-500.0,0.00023948,2]
[359296261,1745897441075,-410.09008914,0.0002399,2]
[359296262,1745897441084,-600.0,0.00024,2]
[359296263,1745897441093,-438.63491863,0.0002409,2]
[359296264,1745897441103,-600.0,0.0002425,2]
[359296265,1745897441112,-213.57907889,0.00024262,2]
[359296266,1745897441121,-1472.63839124,0.00024298,2]
[359296267,1745897441130,-500.0,0.0002434,2]
[359296268,1745897441139,-10558.0922685,0.00024383,5]
[359296269,1745897441149,-153.0,0.00024411,2]
[359296270,1745897441158,-783.23216669,0.000245,2]
[359296271,1745897441167,-213.57907889,0.0002451,2]
[359296272,1745897441177,-661.1079275,0.0002475,2]
[359296273,1745897441187,-213.57907889,0.00024766,2]
[359296274,1745897441195,-1197.722612,0.0002492,5]
[359296275,1745897441204,-1000.0,0.0002494,5]
[359296276,1745897441213,-1000.0,0.0002496,5]
[359296277,1745897441220,-500.0,0.00024962,2]
[359296278,1745897441228,-500.0,0.00024962,2]
[359296279,1745897441236,-500.0,0.00024962,2]
[359296280,1745897441244,-278.57041187,0.00024962,2]
[359296281,1745897441252,-500.0,0.00024962,2]
[359296282,1745897441260,-267.5339905,0.00024962,2]
[359296283,1745897441269,-500.0,0.00024962,2]
[359296284,1745897441277,-591.27086963,0.00024962,2]
[359296285,1745897441286,-26762.4991117,0.00024963,2]
[359296286,1745897441294,-1000.0,0.0002498,5]
[359296287,1745897441302,-1098.861306,0.0002498,5]
[359296288,1745897441310,-648.89,0.0002498,3]
[359296289,1745897441318,-324.45,0.0002498,3]
[359296290,1745897441326,-648.91,0.0002498,3]
[359296291,1745897441335,-26762.4991117,0.0002499,2]
[359296292,1745897441346,-3114.67,0.0002499,3]
[359296293,1745897441355,-1557.33,0.0002499,3]
[359296294,1745897441364,-778.67,0.0002499,3]
[359296295,1745897441373,-19778.89706066,0.00025,7]
[359296296,1745897441382,-2206.06724609,0.00025,2]
[359296297,1745897441392,-155.212,0.00025,2]
[359296298,1745897441402,-160.0,0.00025,7]
[359296299,1745897441411,-1000.0,0.00025,5]
[359296300,1745897441420,-1000.0,0.00025,5]
[359296301,1745897441430,-160.0,0.00025,7]
[359296302,1745897441439,-840.73483787,0.00025,7]
[359296303,1745897441448,-160.0,0.00025,7]
[359296304,1745897441458,-160.0,0.00025,7]
[359296305,1745897441467,-160.0,0.00025,7]
[359296306,1745897441476,-421.28334683,0.00025,7]
[359296307,1745897441486,-10558.0922685,0.00025003,5]
[359296308,1745897441495,-1439.38611797,0.00025105,2]
[359296309,1745897441505,-681.93,0.00025205,2]
[359296310,1745897441515,-682.09735201,0.00025479,2]
[359296311,1745897441524,-153.0,0.00025507,2]
[359296312,1745897441534,-160.0,0.00025623,2]
[359296313,1745897441543,-10558.0922685,0.00025624,6]
[359296314,1745897441553,-17144.0,0.0002587,2]
[359296315,1745897441562,-175.1,0.0002587,2]
[359296316,1745897441572,-175.1,0.0002587,2]
[359296317,1745897441581,-175.1,0.0002587,2]
[359296318,1745897441593,-175.1,0.0002587,2]
[359296319,1745897441603,-175.1,0.0002587,2]
[359296320,1745897441613,-175.0,0.0002587,2]
[359296321,1745897441622,-500.0,0.00025984,2]
[359296322,1745897441633,-26762.4991117,0.0002599,2]
[359296323,1745897441643,-8586.7305124,0.00026,2]
[359296324,1745897441653,-150.0675875,0.00026,2]
[359296325,1745897441665,-151.0,0.00026,14]
[359296326,1745897441674,-500.0,0.00026219,2]
[359296327,1745897441683,-10558.0922685,0.00026245,6]
[359296328,1745897441690,-1297.78,0.0002635,3]
[359296329,1745897441699,-648.9,0.0002635,3]
[359296330,1745897441707,-324.44,0.0002635,3]
[359296331,1745897441716,-1529.79572058,0.00026351,2]
[359296332,1745897441725,-6229.34,0.0002636,3]
[359296333,1745897441734,-3114.66,0.0002636,3]
[359296334,1745897441743,-151.0,0.00026668,2]
[359296335,1745897441752,-500.0,0.00026668,2]
[359296336,1745897441762,-2245.0,0.00026705,2]
[359296337,1745897441771,-707.0,0.00026705,2]
[359296338,1745897441780,-403.0,0.00026705,2]
[359296339,1745897441790,-500.0,0.00026723,2]
[359296340,1745897441800,-466.20739271,0.00026749,2]
[359296341,1745897441809,-598.07051698,0.0002675,2]
[359296384,1745897446666,-401.92948302,0.0002675,2]
[359296386,1745897446675,-434.90682008,0.00026778,2]
[359296388,1745897446687,-164.0046919,0.00026795,2]
[359296392,1745897446719,-353.0720424,0.00026795,2]
[359296394,1745897446731,-955.56165694,0.00026795,2]
[359296396,1745897446741,-151.0,0.000268,14]
[359296398,1745897446750,-10558.0922685,0.00026866,7]
[359296399,1745897446760,-500.0,0.00026979,2]
[359296400,1745897446769,-630.63323974,0.00026979,2]
[359296401,1745897446779,-500.0,0.00026979,2]
[359296402,1745897446788,-196.80229276,0.00026979,2]
[359296403,1745897446798,-26762.4991117,0.0002698,2]
[359296404,1745897446807,-21669.08393781,0.0002699,2]
[359296405,1745897446817,-160.0,0.00026993,2]
[359296406,1745897446826,-1439.38611797,0.00027088,2]